[Event "*** SCC Grand Prix: Titled Tuesday Blitz"]
[Site "Chess.com"]
[Date "2020.06.02"]
[Round "5"]
[White "annamaja"]
[Black "Lovinski"]
[Result "1-0"]
[WhiteElo "2198"]
[BlackElo "2362"]
[TimeControl "180+1"]
[EndTime "10:57:55 PDT"]
[Termination "annamaja won by resignation"]

1. e4 {[%clk 0:03:00.9]} 1... e5 {[%clk 0:02:59.6]} 2. Nf3 {[%clk 0:03:00.5]}
2... Nc6 {[%clk 0:02:58.4]} 3. Bb5 {[%clk 0:03:00]} 3... a6 {[%clk 0:02:58.4]}
4. Ba4 {[%clk 0:02:59.7]} 4... Nf6 {[%clk 0:02:58]} 5. d3 {[%clk 0:02:59.4]}
5... d6 {[%clk 0:02:56.6]} 6. O-O {[%clk 0:02:59.1]} 6... Be7 {[%clk 0:02:56.3]}
7. c3 {[%clk 0:02:59.4]} 7... O-O {[%clk 0:02:56.2]} 8. Nbd2 {[%clk 0:02:56.8]}
8... b5 {[%clk 0:02:56.5]} 9. Bc2 {[%clk 0:02:52.7]} 9... d5 {[%clk 0:02:56.3]}
10. exd5 {[%clk 0:02:42.7]} 10... Qxd5 {[%clk 0:02:57.2]} 11. Ne4 {[%clk
0:02:38.7]} 11... Bf5 {[%clk 0:02:49.4]} 12. Ng3 {[%clk 0:02:22.3]} 12... Bg6
{[%clk 0:02:49.1]} 13. Re1 {[%clk 0:02:20.3]} 13... Rad8 {[%clk 0:02:48.6]} 14.
Bg5 {[%clk 0:01:35.2]} 14... h6 {[%clk 0:02:46.7]} 15. Bxf6 {[%clk 0:01:29.3]}
15... Bxf6 {[%clk 0:02:47.6]} 16. Ne4 {[%clk 0:01:27.4]} 16... Be7 {[%clk
0:02:42.4]} 17. Qe2 {[%clk 0:01:23.7]} 17... a5 {[%clk 0:02:36.4]} 18. a4 {[%clk
0:01:17.5]} 18... b4 {[%clk 0:02:32.1]} 19. Rad1 {[%clk 0:01:17.7]} 19... f5
{[%clk 0:02:23.4]} 20. Ned2 {[%clk 0:01:10.2]} 20... Kh8 {[%clk 0:02:02.8]} 21.
Nxe5 {[%clk 0:01:02.8]} 21... Nxe5 {[%clk 0:02:03.7]} 22. Qxe5 {[%clk
0:01:03.7]} 22... Qxe5 {[%clk 0:01:57.9]} 23. Rxe5 {[%clk 0:01:04.6]} 23... Bf6
{[%clk 0:01:50.9]} 24. Rxa5 {[%clk 0:00:54.8]} 24... bxc3 {[%clk 0:01:50.9]} 25.
bxc3 {[%clk 0:00:55.3]} 25... Bxc3 {[%clk 0:01:46.8]} 26. Rc5 {[%clk 0:00:55.8]}
26... Bd4 {[%clk 0:01:27.9]} 27. Rxc7 {[%clk 0:00:52.5]} 27... Rb8 {[%clk
0:01:24.8]} 28. Nf3 {[%clk 0:00:40.6]} 28... Bh5 {[%clk 0:01:17.6]} 29. Rb1
{[%clk 0:00:30.4]} 29... Bxf3 {[%clk 0:01:15.3]} 30. Rxb8 {[%clk 0:00:22.1]}
30... Rxb8 {[%clk 0:01:16.2]} 31. gxf3 {[%clk 0:00:22.5]} 31... Rb2 {[%clk
0:01:15.9]} 32. Rc4 {[%clk 0:00:18]} 32... Bb6 {[%clk 0:01:07.3]} 33. f4 {[%clk
0:00:17.7]} 33... Ra2 {[%clk 0:01:06.3]} 34. Kg2 {[%clk 0:00:17.8]} 34... Kh7
{[%clk 0:01:06.5]} 35. Kf3 {[%clk 0:00:16]} 35... Bd8 {[%clk 0:01:03]} 36. d4
{[%clk 0:00:14.8]} 36... Ra3+ {[%clk 0:01:00.9]} 37. Kg2 {[%clk 0:00:14.7]}
37... Bh4 {[%clk 0:00:59.4]} 38. Bxf5+ {[%clk 0:00:14.3]} 38... Kg8 {[%clk
0:00:59]} 39. Be6+ {[%clk 0:00:14.5]} 39... Kf8 {[%clk 0:00:59.4]} 40. d5 {[%clk
0:00:14.3]} 40... Ke7 {[%clk 0:00:59.6]} 41. Bg4 {[%clk 0:00:12.4]} 41... Rxa4
{[%clk 0:00:54.3]} 42. Rxa4 {[%clk 0:00:11.3]} 1-0

[Event "*** SCC Grand Prix: Titled Tuesday Blitz"]
[Site "Chess.com"]
[Date "2020.06.02"]
[Round "5"]
[White "Arjun2002"]
[Black "Zufi1811"]
[Result "1-0"]
[WhiteElo "2645"]
[BlackElo "2457"]
[TimeControl "180+1"]
[EndTime "10:57:56 PDT"]
[Termination "Arjun2002 won by checkmate"]

1. e4 {[%clk 0:03:00.9]} 1... c5 {[%clk 0:02:58.7]} 2. Nf3 {[%clk 0:03:00.8]}
2... d6 {[%clk 0:02:58.2]} 3. Bb5+ {[%clk 0:03:00.7]} 3... Nd7 {[%clk
0:02:57.2]} 4. c3 {[%clk 0:03:00]} 4... Nf6 {[%clk 0:02:55.4]} 5. Bd3 {[%clk
0:03:00.5]} 5... e6 {[%clk 0:02:51.4]} 6. O-O {[%clk 0:03:00.3]} 6... Be7 {[%clk
0:02:51.9]} 7. Re1 {[%clk 0:03:00.3]} 7... O-O {[%clk 0:02:52.2]} 8. Bc2 {[%clk
0:03:00.7]} 8... b6 {[%clk 0:02:50]} 9. d4 {[%clk 0:03:01.2]} 9... Bb7 {[%clk
0:02:50.2]} 10. a4 {[%clk 0:03:00.9]} 10... a6 {[%clk 0:02:49.5]} 11. Nbd2
{[%clk 0:03:01]} 11... Rc8 {[%clk 0:02:46.3]} 12. e5 {[%clk 0:02:44.4]} 12...
Ne8 {[%clk 0:02:41.7]} 13. exd6 {[%clk 0:02:37.7]} 13... Nxd6 {[%clk 0:02:35.8]}
14. Ne4 {[%clk 0:02:36.9]} 14... Bxe4 {[%clk 0:02:10.6]} 15. Bxe4 {[%clk
0:02:37.8]} 15... cxd4 {[%clk 0:02:11.2]} 16. Qxd4 {[%clk 0:02:35]} 16... Nxe4
{[%clk 0:02:09.5]} 17. Rxe4 {[%clk 0:02:25.3]} 17... Nc5 {[%clk 0:02:07.8]} 18.
Re2 {[%clk 0:02:21.5]} 18... Nb3 {[%clk 0:02:04.3]} 19. Qxd8 {[%clk 0:02:17.4]}
19... Rfxd8 {[%clk 0:02:05.2]} 20. Rb1 {[%clk 0:02:18]} 20... Rd1+ {[%clk
0:01:49.7]} 21. Re1 {[%clk 0:02:17.7]} 21... Rxe1+ {[%clk 0:01:40.6]} 22. Nxe1
{[%clk 0:02:18.6]} 22... Rc4 {[%clk 0:01:40.2]} 23. Be3 {[%clk 0:02:16.2]} 23...
Bc5 {[%clk 0:01:22.1]} 24. Rd1 {[%clk 0:02:16.2]} 24... h6 {[%clk 0:01:18.6]}
25. Bxc5 {[%clk 0:01:56.9]} 25... bxc5 {[%clk 0:01:10.8]} 26. Rd8+ {[%clk
0:01:54]} 26... Kh7 {[%clk 0:01:10.8]} 27. Rb8 {[%clk 0:01:53.2]} 27... Nd2
{[%clk 0:01:10]} 28. Nd3 {[%clk 0:01:29.6]} 28... Rxa4 {[%clk 0:01:08.3]} 29. g3
{[%clk 0:01:30]} 29... c4 {[%clk 0:01:06.9]} 30. Ne5 {[%clk 0:01:29.7]} 30... f6
{[%clk 0:01:06.6]} 31. Nd7 {[%clk 0:01:29.8]} 31... Kg6 {[%clk 0:00:53.9]} 32.
Rb7 {[%clk 0:01:29.1]} 32... e5 {[%clk 0:00:48.6]} 33. Nf8+ {[%clk 0:01:16.9]}
33... Kf5 {[%clk 0:00:48.3]} 34. Rxg7 {[%clk 0:01:17]} 34... Nf3+ {[%clk
0:00:32.6]} 35. Kg2 {[%clk 0:01:15.9]} 35... Ne1+ {[%clk 0:00:32.7]} 36. Kh3
{[%clk 0:01:15.6]} 36... Nd3 {[%clk 0:00:33.6]} 37. f3 {[%clk 0:01:14.6]} 37...
Ra2 {[%clk 0:00:27.3]} 38. Rc7 {[%clk 0:01:02.4]} 38... Nxb2 {[%clk 0:00:20.6]}
39. Rc6 {[%clk 0:00:52.3]} 39... e4 {[%clk 0:00:17.5]} 40. Rc5# {[%clk
0:00:49.4]} 1-0

[Event "*** SCC Grand Prix: Titled Tuesday Blitz"]
[Site "Chess.com"]
[Date "2020.06.02"]
[Round "5"]
[White "Kira170"]
[Black "almo64"]
[Result "0-1"]
[WhiteElo "2618"]
[BlackElo "2822"]
[TimeControl "180+1"]
[EndTime "10:57:58 PDT"]
[Termination "almo64 won on time"]

1. e4 {[%clk 0:03:00.2]} 1... c5 {[%clk 0:02:59.6]} 2. b3 {[%clk 0:02:59.7]}
2... g6 {[%clk 0:02:56.6]} 3. Bb2 {[%clk 0:02:59.1]} 3... Nf6 {[%clk 0:02:57]}
4. e5 {[%clk 0:02:59]} 4... Nd5 {[%clk 0:02:55.9]} 5. Nf3 {[%clk 0:02:58.8]}
5... Bg7 {[%clk 0:02:55.8]} 6. Bc4 {[%clk 0:02:58.5]} 6... Nb6 {[%clk
0:02:51.4]} 7. O-O {[%clk 0:02:58]} 7... Nxc4 {[%clk 0:02:50.1]} 8. bxc4 {[%clk
0:02:57.6]} 8... Nc6 {[%clk 0:02:50]} 9. Re1 {[%clk 0:02:55.9]} 9... d6 {[%clk
0:02:48.5]} 10. Qc1 {[%clk 0:02:33.3]} 10... dxe5 {[%clk 0:02:42.2]} 11. d3
{[%clk 0:02:12]} 11... Nd4 {[%clk 0:02:31.7]} 12. Nxe5 {[%clk 0:02:04.9]} 12...
O-O {[%clk 0:02:30.2]} 13. Nd2 {[%clk 0:02:01.9]} 13... f6 {[%clk 0:02:23.3]}
14. Nef3 {[%clk 0:02:00.1]} 14... e5 {[%clk 0:02:17.1]} 15. Ba3 {[%clk
0:01:26.7]} 15... b6 {[%clk 0:02:07.4]} 16. Nxd4 {[%clk 0:01:26.2]} 16... exd4
{[%clk 0:02:05.7]} 17. Qd1 {[%clk 0:01:24.9]} 17... Bb7 {[%clk 0:02:04.7]} 18.
Qg4 {[%clk 0:01:24.4]} 18... f5 {[%clk 0:02:04.2]} 19. Qf4 {[%clk 0:01:23.9]}
19... g5 {[%clk 0:01:49.5]} 20. Qg3 {[%clk 0:01:23.6]} 20... h5 {[%clk
0:01:34.9]} 21. f4 {[%clk 0:01:20.4]} 21... g4 {[%clk 0:01:34]} 22. Re6 {[%clk
0:01:16.4]} 22... Qd7 {[%clk 0:01:22.7]} 23. Rg6 {[%clk 0:00:54.2]} 23... Kf7
{[%clk 0:01:15.6]} 24. Rg5 {[%clk 0:00:49.2]} 24... Rh8 {[%clk 0:01:13.8]} 25.
Rf1 {[%clk 0:00:17.4]} 25... h4 {[%clk 0:01:08.6]} 26. Qe1 {[%clk 0:00:16.7]}
26... Rae8 {[%clk 0:01:08]} 27. Qd1 {[%clk 0:00:16.5]} 27... Bf6 {[%clk
0:01:02.6]} 28. Bb2 {[%clk 0:00:15.6]} 28... h3 {[%clk 0:00:57.9]} 29. Ne4
{[%clk 0:00:08.6]} 29... fxe4 {[%clk 0:00:52.6]} 30. Rxg4 {[%clk 0:00:06.9]}
30... e3 {[%clk 0:00:42.2]} 31. Rg3 {[%clk 0:00:04.7]} 31... e2 {[%clk
0:00:41.2]} 0-1

[Event "*** SCC Grand Prix: Titled Tuesday Blitz"]
[Site "Chess.com"]
[Date "2020.06.02"]
[Round "5"]
[White "chessablanca"]
[Black "BakaPG"]
[Result "0-1"]
[WhiteElo "2446"]
[BlackElo "2690"]
[TimeControl "180+1"]
[EndTime "10:57:58 PDT"]
[Termination "BakaPG won by checkmate"]

1. Nf3 {[%clk 0:03:00.9]} 1... d5 {[%clk 0:02:59.2]} 2. c4 {[%clk 0:02:58]} 2...
d4 {[%clk 0:02:58.4]} 3. e3 {[%clk 0:02:58]} 3... c5 {[%clk 0:02:54]} 4. b4
{[%clk 0:02:57.8]} 4... Nc6 {[%clk 0:02:49.6]} 5. bxc5 {[%clk 0:02:55]} 5... e5
{[%clk 0:02:48.3]} 6. exd4 {[%clk 0:02:48.2]} 6... e4 {[%clk 0:02:47.8]} 7. Ng1
{[%clk 0:02:25.9]} 7... Qxd4 {[%clk 0:02:39.5]} 8. Nc3 {[%clk 0:02:25.4]} 8...
Bxc5 {[%clk 0:02:37.1]} 9. Qe2 {[%clk 0:02:23.9]} 9... Nf6 {[%clk 0:02:35.7]}
10. Nf3 {[%clk 0:02:13.7]} 10... Qd8 {[%clk 0:02:18.1]} 11. Nxe4 {[%clk
0:02:06.3]} 11... O-O {[%clk 0:02:16.2]} 12. Nxc5 {[%clk 0:01:28.4]} 12... Re8
{[%clk 0:02:14.5]} 13. Bb2 {[%clk 0:01:28.4]} 13... Rxe2+ {[%clk 0:02:07.5]} 14.
Bxe2 {[%clk 0:01:29.3]} 14... Qb6 {[%clk 0:02:00.2]} 15. Nb3 {[%clk 0:01:27.2]}
15... a5 {[%clk 0:01:48.5]} 16. c5 {[%clk 0:01:02.2]} 16... Qd8 {[%clk 0:01:46]}
17. O-O {[%clk 0:00:57.6]} 17... Bg4 {[%clk 0:01:45.1]} 18. h3 {[%clk
0:00:37.6]} 18... Bh5 {[%clk 0:01:43.5]} 19. d4 {[%clk 0:00:32.2]} 19... Nd5
{[%clk 0:01:40.8]} 20. Rfd1 {[%clk 0:00:29.3]} 20... Nf4 {[%clk 0:01:39.7]} 21.
Nc1 {[%clk 0:00:23.3]} 21... Nb4 {[%clk 0:01:28.3]} 22. a3 {[%clk 0:00:18.1]}
22... Nbd5 {[%clk 0:01:27]} 23. Kh2 {[%clk 0:00:14]} 23... Qc7 {[%clk
0:01:22.1]} 24. Kg1 {[%clk 0:00:10.2]} 24... Re8 {[%clk 0:01:20.7]} 25. Bf1
{[%clk 0:00:06.1]} 25... Bxf3 {[%clk 0:01:18.3]} 26. gxf3 {[%clk 0:00:07]} 26...
Re6 {[%clk 0:01:16]} 27. Nd3 {[%clk 0:00:05.3]} 27... Nxd3 {[%clk 0:00:57.8]}
28. Bxd3 {[%clk 0:00:06.2]} 28... Qf4 {[%clk 0:00:51.1]} 29. Be4 {[%clk
0:00:05.5]} 29... Qg5+ {[%clk 0:00:50]} 30. Kf1 {[%clk 0:00:05.4]} 30... Nf4
{[%clk 0:00:49.1]} 31. d5 {[%clk 0:00:05.9]} 31... Qg2+ {[%clk 0:00:40.6]} 32.
Ke1 {[%clk 0:00:06.1]} 32... Qxf3 {[%clk 0:00:35.7]} 33. dxe6 {[%clk 0:00:04.9]}
33... Qe2# {[%clk 0:00:34.7]} 0-1

[Event "*** SCC Grand Prix: Titled Tuesday Blitz"]
[Site "Chess.com"]
[Date "2020.06.02"]
[Round "5"]
[White "Msb2"]
[Black "Micki-taryan"]
[Result "1-0"]
[WhiteElo "2840"]
[BlackElo "3038"]
[TimeControl "180+1"]
[EndTime "10:58:00 PDT"]
[Termination "Msb2 won by resignation"]

1. d4 {[%clk 0:03:00.9]} 1... Nf6 {[%clk 0:02:55]} 2. c4 {[%clk 0:03:01.5]} 2...
e6 {[%clk 0:02:55.1]} 3. Nc3 {[%clk 0:03:02.1]} 3... Bb4 {[%clk 0:02:54.6]} 4.
e3 {[%clk 0:03:02.6]} 4... b6 {[%clk 0:02:53.7]} 5. Bd2 {[%clk 0:03:02.9]} 5...
Bxc3 {[%clk 0:02:53.3]} 6. Bxc3 {[%clk 0:03:03.1]} 6... Ne4 {[%clk 0:02:54.2]}
7. Bb4 {[%clk 0:03:03.5]} 7... c5 {[%clk 0:02:52.8]} 8. Ba3 {[%clk 0:03:03.3]}
8... d6 {[%clk 0:02:49.5]} 9. Nf3 {[%clk 0:03:03.4]} 9... Bb7 {[%clk 0:02:46.2]}
10. Bd3 {[%clk 0:03:03.6]} 10... Nd7 {[%clk 0:02:15.7]} 11. b4 {[%clk 0:03:01]}
11... O-O {[%clk 0:02:11.7]} 12. O-O {[%clk 0:02:56.1]} 12... f5 {[%clk
0:02:09.7]} 13. bxc5 {[%clk 0:02:54.3]} 13... bxc5 {[%clk 0:02:09.6]} 14. Bb2
{[%clk 0:02:52.8]} 14... Rb8 {[%clk 0:02:07.1]} 15. Rb1 {[%clk 0:02:51.8]} 15...
Ng5 {[%clk 0:01:58.8]} 16. Nd2 {[%clk 0:02:40.3]} 16... Rf6 {[%clk 0:01:55.6]}
17. f4 {[%clk 0:02:25]} 17... Nf7 {[%clk 0:01:44.5]} 18. d5 {[%clk 0:02:19.6]}
18... e5 {[%clk 0:01:31.4]} 19. Bc3 {[%clk 0:02:19]} 19... Qe7 {[%clk 0:01:17]}
20. fxe5 {[%clk 0:02:10.4]} 20... Ndxe5 {[%clk 0:01:17.9]} 21. Bxf5 {[%clk
0:02:10.7]} 21... Rf8 {[%clk 0:01:18.3]} 22. Be6 {[%clk 0:02:04.5]} 22... Rxf1+
{[%clk 0:01:18]} 23. Qxf1 {[%clk 0:01:58.8]} 23... Kh8 {[%clk 0:01:18.2]} 24.
Qf5 {[%clk 0:01:48.7]} 24... Nh6 {[%clk 0:00:57.4]} 25. Qe4 {[%clk 0:01:23.5]}
25... Ng6 {[%clk 0:00:41.7]} 26. h3 {[%clk 0:01:16.7]} 26... Ba6 {[%clk
0:00:41.1]} 27. Nf3 {[%clk 0:01:12.8]} 27... Nf7 {[%clk 0:00:38.5]} 28. h4
{[%clk 0:00:54.7]} 28... Re8 {[%clk 0:00:36.6]} 29. Qg4 {[%clk 0:00:38.6]} 29...
Nh6 {[%clk 0:00:23.7]} 30. Qg3 {[%clk 0:00:36.4]} 30... Nf8 {[%clk 0:00:21]} 31.
Ng5 {[%clk 0:00:35.1]} 31... Bxc4 {[%clk 0:00:18.4]} 32. Nf7+ {[%clk 0:00:35.4]}
32... Qxf7 {[%clk 0:00:11.4]} 33. Bxf7 {[%clk 0:00:35.6]} 1-0

[Event "*** SCC Grand Prix: Titled Tuesday Blitz"]
[Site "Chess.com"]
[Date "2020.06.02"]
[Round "5"]
[White "flexova"]
[Black "zala02"]
[Result "1-0"]
[WhiteElo "2452"]
[BlackElo "2230"]
[TimeControl "180+1"]
[EndTime "10:58:00 PDT"]
[Termination "flexova won on time"]

1. Nf3 {[%clk 0:03:00.9]} 1... d5 {[%clk 0:02:59.8]} 2. g3 {[%clk 0:03:00.6]}
2... Bg4 {[%clk 0:02:56.5]} 3. Bg2 {[%clk 0:03:00.6]} 3... c6 {[%clk 0:02:54]}
4. h3 {[%clk 0:03:00.9]} 4... Bh5 {[%clk 0:02:52.5]} 5. O-O {[%clk 0:02:58.6]}
5... Nd7 {[%clk 0:02:51.3]} 6. d3 {[%clk 0:02:59.2]} 6... Ngf6 {[%clk
0:02:49.7]} 7. Qe1 {[%clk 0:02:59.2]} 7... e5 {[%clk 0:02:49.3]} 8. e4 {[%clk
0:02:59.5]} 8... d4 {[%clk 0:02:22.6]} 9. Nh4 {[%clk 0:02:52.9]} 9... Bc5 {[%clk
0:02:11.1]} 10. f4 {[%clk 0:02:50.7]} 10... exf4 {[%clk 0:01:58.9]} 11. Bxf4
{[%clk 0:02:50.3]} 11... O-O {[%clk 0:01:51.3]} 12. Nd2 {[%clk 0:02:44.3]} 12...
Re8 {[%clk 0:01:44.4]} 13. Qf2 {[%clk 0:02:38.1]} 13... Nf8 {[%clk 0:01:16.3]}
14. Bg5 {[%clk 0:02:27.8]} 14... Re6 {[%clk 0:00:59.9]} 15. Nf5 {[%clk
0:02:16.1]} 15... Bg6 {[%clk 0:00:48]} 16. Nxg7 {[%clk 0:01:58.8]} 16... Kxg7
{[%clk 0:00:39.6]} 17. e5 {[%clk 0:01:57.3]} 17... Be7 {[%clk 0:00:33.6]} 18.
exf6+ {[%clk 0:01:50.3]} 18... Bxf6 {[%clk 0:00:34.1]} 19. Bf4 {[%clk
0:01:47.3]} 19... Be5 {[%clk 0:00:18.6]} 20. Rae1 {[%clk 0:01:45.2]} 20... Bxf4
{[%clk 0:00:18.2]} 21. Qxf4 {[%clk 0:01:45.5]} 21... Rxe1 {[%clk 0:00:17.9]} 22.
Rxe1 {[%clk 0:01:44.4]} 22... Ne6 {[%clk 0:00:18.5]} 23. Qg4 {[%clk 0:01:28.5]}
23... Qf6 {[%clk 0:00:07.7]} 24. Ne4 {[%clk 0:01:21.9]} 24... Qe5 {[%clk
0:00:07.7]} 25. Qd1 {[%clk 0:01:00.5]} 25... Re8 {[%clk 0:00:02.4]} 26. Kh2
{[%clk 0:00:31.2]} 26... Qh5 {[%clk 0:00:01.6]} 27. Qxh5 {[%clk 0:00:30]} 27...
Bxh5 {[%clk 0:00:02.5]} 28. Nd6 {[%clk 0:00:29.2]} 28... Re7 {[%clk 0:00:02.4]}
29. Nf5+ {[%clk 0:00:29.3]} 1-0

[Event "*** SCC Grand Prix: Titled Tuesday Blitz"]
[Site "Chess.com"]
[Date "2020.06.02"]
[Round "5"]
[White "ChessWarrior7197"]
[Black "GregShahade"]
[Result "1-0"]
[WhiteElo "2904"]
[BlackElo "2583"]
[TimeControl "180+1"]
[EndTime "10:58:03 PDT"]
[Termination "ChessWarrior7197 won by resignation"]

1. e4 {[%clk 0:03:00.9]} 1... e5 {[%clk 0:02:59.6]} 2. d4 {[%clk 0:03:01.8]}
2... exd4 {[%clk 0:02:59.2]} 3. Qxd4 {[%clk 0:03:01.7]} 3... Nc6 {[%clk
0:02:57.9]} 4. Qe3 {[%clk 0:03:01.7]} 4... g6 {[%clk 0:02:53.3]} 5. h4 {[%clk
0:02:59.8]} 5... h5 {[%clk 0:02:52.5]} 6. Nc3 {[%clk 0:02:59.3]} 6... Bg7 {[%clk
0:02:52.4]} 7. Bd2 {[%clk 0:02:58.1]} 7... d6 {[%clk 0:02:52.4]} 8. O-O-O {[%clk
0:02:58.1]} 8... Be6 {[%clk 0:02:52.8]} 9. Nh3 {[%clk 0:02:57]} 9... Nge7 {[%clk
0:02:49.3]} 10. Ng5 {[%clk 0:02:56.8]} 10... Qd7 {[%clk 0:02:49.8]} 11. Kb1
{[%clk 0:02:55.6]} 11... O-O-O {[%clk 0:02:48.6]} 12. Bc1 {[%clk 0:02:51.8]}
12... Rhe8 {[%clk 0:02:42.6]} 13. f3 {[%clk 0:02:51]} 13... Kb8 {[%clk
0:02:40.3]} 14. Bb5 {[%clk 0:02:50.3]} 14... a6 {[%clk 0:02:39.8]} 15. Ba4
{[%clk 0:02:49]} 15... Bh6 {[%clk 0:02:23.2]} 16. Qf2 {[%clk 0:02:46.4]} 16...
Bxg5 {[%clk 0:02:11.1]} 17. Bxg5 {[%clk 0:02:47.3]} 17... Rc8 {[%clk 0:02:06.7]}
18. Nd5 {[%clk 0:02:46.8]} 18... Ng8 {[%clk 0:01:44.6]} 19. Nb4 {[%clk
0:02:43.1]} 19... f6 {[%clk 0:01:31.1]} 20. Bxc6 {[%clk 0:02:41.9]} 20... bxc6
{[%clk 0:01:30.9]} 21. Nxa6+ {[%clk 0:02:42.4]} 21... Ka8 {[%clk 0:01:31.1]} 22.
Qd4 {[%clk 0:02:35.2]} 22... fxg5 {[%clk 0:01:10.3]} 23. Nc5 {[%clk 0:02:23.6]}
23... dxc5 {[%clk 0:01:06]} 24. Qa4+ {[%clk 0:02:23.4]} 24... Kb7 {[%clk
0:01:05.4]} 25. Rxd7 {[%clk 0:02:24.3]} 25... Bxd7 {[%clk 0:01:05.4]} 26. Qb3+
{[%clk 0:02:23.1]} 26... Ka7 {[%clk 0:01:02.3]} 27. hxg5 {[%clk 0:02:17.9]}
27... Be6 {[%clk 0:00:57.9]} 28. Qc3 {[%clk 0:02:17.7]} 28... Rb8 {[%clk
0:00:48.3]} 29. Qxc5+ {[%clk 0:02:16.9]} 29... Rb6 {[%clk 0:00:48]} 30. f4
{[%clk 0:02:17]} 30... Kb7 {[%clk 0:00:46.5]} 31. f5 {[%clk 0:02:16.2]} 31...
gxf5 {[%clk 0:00:41.9]} 32. exf5 {[%clk 0:02:17.1]} 32... Rb5 {[%clk 0:00:41.7]}
33. Qc3 {[%clk 0:02:08.7]} 33... Bxf5 {[%clk 0:00:38.4]} 34. a4 {[%clk
0:02:06.7]} 34... Rd5 {[%clk 0:00:36.3]} 35. Rf1 {[%clk 0:02:00.9]} 35... Bg6
{[%clk 0:00:25.9]} 36. Ka2 {[%clk 0:02:00.2]} 36... Re2 {[%clk 0:00:23.4]} 37.
Qb4+ {[%clk 0:01:58.5]} 37... Ka7 {[%clk 0:00:21.5]} 38. Rf8 {[%clk 0:01:58.7]}
38... Re8 {[%clk 0:00:18.3]} 39. Rxe8 {[%clk 0:01:57.5]} 39... Bxe8 {[%clk
0:00:19.2]} 40. Qf8 {[%clk 0:01:54.4]} 40... Rxg5 {[%clk 0:00:19.4]} 41. Qxe8
{[%clk 0:01:53.9]} 41... Rxg2 {[%clk 0:00:19.6]} 42. Qxh5 {[%clk 0:01:53.2]}
42... Rg7 {[%clk 0:00:18.8]} 43. Qc5+ {[%clk 0:01:51.3]} 43... Kb7 {[%clk
0:00:19.1]} 44. a5 {[%clk 0:01:52.2]} 44... Rg6 {[%clk 0:00:18.5]} 45. Qb4+
{[%clk 0:01:51.3]} 45... Ka7 {[%clk 0:00:18.3]} 46. Qc4 {[%clk 0:01:50.9]} 46...
Ne7 {[%clk 0:00:16]} 47. b4 {[%clk 0:01:51.4]} 47... Nd5 {[%clk 0:00:15.4]} 48.
Qc5+ {[%clk 0:01:51.1]} 48... Kb7 {[%clk 0:00:12.9]} 49. b5 {[%clk 0:01:51]}
49... Rd6 {[%clk 0:00:12.1]} 50. bxc6+ {[%clk 0:01:49.3]} 50... Ka6 {[%clk
0:00:12.7]} 51. c4 {[%clk 0:01:48.1]} 51... Nc3+ {[%clk 0:00:12.2]} 52. Kb3
{[%clk 0:01:47.7]} 52... Rd3 {[%clk 0:00:09.3]} 53. Kc2 {[%clk 0:01:46.2]} 53...
Rh3 {[%clk 0:00:09.3]} 54. Qf5 {[%clk 0:01:44.6]} 54... Rg3 {[%clk 0:00:07.8]}
55. Qc8+ {[%clk 0:01:44.1]} 55... Kxa5 {[%clk 0:00:06.6]} 56. Qxc7+ {[%clk
0:01:45]} 56... Ka4 {[%clk 0:00:06.6]} 57. Qxg3 {[%clk 0:01:44.4]} 57... Kb4
{[%clk 0:00:06.8]} 58. Qxc3+ {[%clk 0:01:41.7]} 58... Kc5 {[%clk 0:00:07.7]} 59.
c7 {[%clk 0:01:41.4]} 1-0

[Event "*** SCC Grand Prix: Titled Tuesday Blitz"]
[Site "Chess.com"]
[Date "2020.06.02"]
[Round "5"]
[White "Mbneu"]
[Black "cukus"]
[Result "0-1"]
[WhiteElo "2239"]
[BlackElo "2486"]
[TimeControl "180+1"]
[EndTime "10:58:03 PDT"]
[Termination "cukus won by resignation"]

1. d4 {[%clk 0:02:55.1]} 1... Nf6 {[%clk 0:02:59.8]} 2. c4 {[%clk 0:02:55.1]}
2... g6 {[%clk 0:03:00.3]} 3. Nc3 {[%clk 0:02:55.2]} 3... d5 {[%clk 0:03:00.6]}
4. cxd5 {[%clk 0:02:54.7]} 4... Nxd5 {[%clk 0:03:01.5]} 5. g3 {[%clk 0:02:54.4]}
5... Bg7 {[%clk 0:02:58.4]} 6. Bg2 {[%clk 0:02:54.9]} 6... Nxc3 {[%clk
0:02:58.7]} 7. bxc3 {[%clk 0:02:54.2]} 7... c5 {[%clk 0:02:59.6]} 8. e3 {[%clk
0:02:53.3]} 8... O-O {[%clk 0:02:58.5]} 9. Ne2 {[%clk 0:02:53.8]} 9... Nc6
{[%clk 0:02:56.4]} 10. O-O {[%clk 0:02:53.1]} 10... e5 {[%clk 0:02:52.6]} 11. d5
{[%clk 0:02:47.2]} 11... Ne7 {[%clk 0:02:51.7]} 12. e4 {[%clk 0:02:45.1]} 12...
Bg4 {[%clk 0:02:47.6]} 13. h3 {[%clk 0:02:32.1]} 13... Bd7 {[%clk 0:02:46]} 14.
a4 {[%clk 0:02:26.7]} 14... Nc8 {[%clk 0:02:43.1]} 15. Ba3 {[%clk 0:02:20.4]}
15... b6 {[%clk 0:02:42.4]} 16. a5 {[%clk 0:02:19]} 16... Nd6 {[%clk 0:02:42.3]}
17. f4 {[%clk 0:02:15.5]} 17... f5 {[%clk 0:02:32.9]} 18. fxe5 {[%clk 0:02:09]}
18... Bxe5 {[%clk 0:02:31.8]} 19. Nf4 {[%clk 0:02:09.6]} 19... fxe4 {[%clk
0:02:26.3]} 20. Ne6 {[%clk 0:02:07.7]} 20... Bxe6 {[%clk 0:02:21.2]} 21. dxe6
{[%clk 0:02:03.4]} 21... Bxg3 {[%clk 0:02:14.4]} 22. Qd5 {[%clk 0:01:51.2]}
22... Qe7 {[%clk 0:02:13.6]} 23. Rad1 {[%clk 0:01:24]} 23... Rad8 {[%clk
0:02:09.6]} 24. Rxf8+ {[%clk 0:01:17.7]} 24... Rxf8 {[%clk 0:02:08.2]} 25. Bxe4
{[%clk 0:01:13.7]} 25... Nxe4 {[%clk 0:02:00.6]} 26. Qxe4 {[%clk 0:01:12.1]}
26... Bb8 {[%clk 0:01:52.3]} 27. Bc1 {[%clk 0:01:00.6]} 27... Qc7 {[%clk
0:01:37.1]} 28. Rd2 {[%clk 0:00:36.5]} 28... Qg3+ {[%clk 0:01:30.7]} 29. Rg2
{[%clk 0:00:33.7]} 29... Qe5 {[%clk 0:01:21.2]} 30. Qxe5 {[%clk 0:00:23.4]}
30... Bxe5 {[%clk 0:01:22.1]} 31. Bg5 {[%clk 0:00:17.4]} 31... Bxc3 {[%clk
0:01:10.9]} 32. axb6 {[%clk 0:00:16.9]} 32... axb6 {[%clk 0:01:10.8]} 33. Ra2
{[%clk 0:00:13.3]} 33... Re8 {[%clk 0:01:07]} 34. e7 {[%clk 0:00:12]} 34... b5
{[%clk 0:01:03.5]} 35. Ra7 {[%clk 0:00:10.9]} 35... Bd4+ {[%clk 0:01:01.7]} 36.
Kg2 {[%clk 0:00:10]} 36... b4 {[%clk 0:00:58.3]} 37. Rb7 {[%clk 0:00:08.8]}
37... Kf7 {[%clk 0:00:54.6]} 38. Kf3 {[%clk 0:00:08.8]} 38... Bf6 {[%clk
0:00:50.2]} 39. Bxf6 {[%clk 0:00:08.1]} 39... Kxf6 {[%clk 0:00:50.7]} 40. Rc7
{[%clk 0:00:08.6]} 40... Rxe7 {[%clk 0:00:50.1]} 41. Rxc5 {[%clk 0:00:09.2]}
41... Rb7 {[%clk 0:00:50.4]} 0-1